[Event "Late-Titled-Tuesday-Blitz-April-30-2024"]
[Site "Chess.com"]
[Date "2024.04.30"]
[Round "5"]
[White "jcibarra"]
[Black "amintabatabaei"]
[Result "0-1"]
[WhiteElo "3001"]
[BlackElo "3120"]
[TimeControl "180+1"]
[EndTime "14:58:01 PDT"]
[Termination "amintabatabaei won on time"]

1. e4 {[%clk 0:02:59.5]} 1... c6 {[%clk 0:02:56.7]} 2. Nf3 {[%clk 0:02:59.4]}
2... d5 {[%clk 0:02:57.6]} 3. d3 {[%clk 0:02:59.8]} 3... dxe4 {[%clk 0:02:57.4]}
4. dxe4 {[%clk 0:03:00.7]} 4... Qxd1+ {[%clk 0:02:57.6]} 5. Kxd1 {[%clk
0:03:01.6]} 5... Nf6 {[%clk 0:02:58.4]} 6. Nbd2 {[%clk 0:03:01.2]} 6... g6
{[%clk 0:02:58.5]} 7. Ne5 {[%clk 0:03:00.1]} 7... Bh6 {[%clk 0:02:57.8]} 8. f3
{[%clk 0:02:58.9]} 8... O-O {[%clk 0:02:58]} 9. Nd3 {[%clk 0:02:53]} 9... Rd8
{[%clk 0:02:57.6]} 10. c3 {[%clk 0:02:50.3]} 10... b6 {[%clk 0:02:57.5]} 11. Kc2
{[%clk 0:02:46.6]} 11... Ba6 {[%clk 0:02:57.9]} 12. Ne5 {[%clk 0:02:38.7]} 12...
Bxf1 {[%clk 0:02:55.7]} 13. Rxf1 {[%clk 0:02:39.6]} 13... Bf4 {[%clk 0:02:25.7]}
14. Nd3 {[%clk 0:02:21.9]} 14... Bxh2 {[%clk 0:02:06.5]} 15. f4 {[%clk
0:02:22.2]} 15... h5 {[%clk 0:02:06.5]} 16. e5 {[%clk 0:02:08.6]} 16... Ng4
{[%clk 0:02:04]} 17. Ne4 {[%clk 0:02:08.7]} 17... Na6 {[%clk 0:01:35.1]} 18.
Ndf2 {[%clk 0:01:54.8]} 18... Nxf2 {[%clk 0:01:21.7]} 19. Rxf2 {[%clk
0:01:54.3]} 19... h4 {[%clk 0:01:20.4]} 20. Rf3 {[%clk 0:01:47.9]} 20... Nc5
{[%clk 0:01:12]} 21. Nxc5 {[%clk 0:01:35.5]} 21... bxc5 {[%clk 0:01:12.9]} 22.
Be3 {[%clk 0:01:35.8]} 22... c4 {[%clk 0:01:05.4]} 23. Bf2 {[%clk 0:01:30.5]}
23... Bg3 {[%clk 0:00:38.5]} 24. Bxg3 {[%clk 0:01:28.4]} 24... hxg3 {[%clk
0:00:39.4]} 25. Rxg3 {[%clk 0:01:28.6]} 25... Kg7 {[%clk 0:00:23.4]} 26. Re1
{[%clk 0:01:26]} 26... Rd5 {[%clk 0:00:20.2]} 27. Rge3 {[%clk 0:01:23.3]} 27...
Rad8 {[%clk 0:00:16.8]} 28. R1e2 {[%clk 0:01:23.5]} 28... e6 {[%clk 0:00:11.8]}
29. Re4 {[%clk 0:01:23.9]} 29... Rc5 {[%clk 0:00:12.5]} 30. Rd2 {[%clk
0:01:20.3]} 30... Rh8 {[%clk 0:00:12.5]} 31. Red4 {[%clk 0:01:02.1]} 31... Rh4
{[%clk 0:00:09.9]} 32. Rd7 {[%clk 0:00:52.7]} 32... Rxf4 {[%clk 0:00:07.9]} 33.
Rxa7 {[%clk 0:00:52.7]} 33... Rxe5 {[%clk 0:00:08.3]} 34. Rc7 {[%clk 0:00:34.6]}
34... g5 {[%clk 0:00:08.8]} 35. Rxc6 {[%clk 0:00:33.2]} 35... g4 {[%clk
0:00:09.5]} 36. Rcd6 {[%clk 0:00:29.2]} 36... g3 {[%clk 0:00:09.1]} 37. R6d4
{[%clk 0:00:28.9]} 37... Ree4 {[%clk 0:00:09.2]} 38. a4 {[%clk 0:00:26]} 38...
Rxd4 {[%clk 0:00:05.2]} 39. cxd4 {[%clk 0:00:26.4]} 39... Rf1 {[%clk 0:00:03]}
40. Kc3 {[%clk 0:00:21.7]} 40... Ra1 {[%clk 0:00:02.5]} 41. Kb4 {[%clk
0:00:21.8]} 41... f5 {[%clk 0:00:02.9]} 42. Rc2 {[%clk 0:00:17]} 42... f4 {[%clk
0:00:03]} 43. a5 {[%clk 0:00:14.6]} 43... Kf6 {[%clk 0:00:02.6]} 44. Kb5 {[%clk
0:00:14.2]} 44... Kf5 {[%clk 0:00:03.4]} 45. a6 {[%clk 0:00:14.3]} 45... Ke4
{[%clk 0:00:04.1]} 46. Rxc4 {[%clk 0:00:13.2]} 46... f3 {[%clk 0:00:03.8]} 47.
gxf3+ {[%clk 0:00:05.3]} 47... Kf5 {[%clk 0:00:03.4]} 48. Rc5+ {[%clk 0:00:04]}
48... Kf4 {[%clk 0:00:04]} 49. Rc8 {[%clk 0:00:03]} 49... g2 {[%clk 0:00:04.4]}
50. Rg8 {[%clk 0:00:03.1]} 50... g1=Q {[%clk 0:00:04]} 51. Rxg1 {[%clk
0:00:03.8]} 51... Rxg1 {[%clk 0:00:04.7]} 52. Kc6 {[%clk 0:00:04.1]} 52... Ra1
{[%clk 0:00:04.6]} 53. Kb6 {[%clk 0:00:03.1]} 53... Kxf3 {[%clk 0:00:04.6]} 54.
a7 {[%clk 0:00:03.2]} 54... Ke4 {[%clk 0:00:05]} 55. b4 {[%clk 0:00:02.9]} 55...
Kxd4 {[%clk 0:00:05.7]} 56. b5 {[%clk 0:00:02.5]} 56... Kc4 {[%clk 0:00:03.5]}
57. a8=Q {[%clk 0:00:02]} 57... Rxa8 {[%clk 0:00:03.2]} 0-1

[Event "Late-Titled-Tuesday-Blitz-April-30-2024"]
[Site "Chess.com"]
[Date "2024.04.30"]
[Round "5"]
[White "Byniolus"]
[Black "Shankland"]
[Result "0-1"]
[WhiteElo "2839"]
[BlackElo "2955"]
[TimeControl "180+1"]
[EndTime "14:58:03 PDT"]
[Termination "Shankland won by resignation"]

1. d4 {[%clk 0:03:00.9]} 1... d5 {[%clk 0:02:59.1]} 2. Nf3 {[%clk 0:03:00.7]}
2... Nf6 {[%clk 0:02:58.7]} 3. Bf4 {[%clk 0:03:01]} 3... c5 {[%clk 0:02:58.8]}
4. c3 {[%clk 0:03:01.3]} 4... cxd4 {[%clk 0:02:57.7]} 5. cxd4 {[%clk 0:03:02.2]}
5... Nc6 {[%clk 0:02:58.3]} 6. Nc3 {[%clk 0:03:02.6]} 6... a6 {[%clk 0:02:57.8]}
7. e3 {[%clk 0:03:02.7]} 7... Bg4 {[%clk 0:02:57.6]} 8. Be2 {[%clk 0:02:53.4]}
8... Bxf3 {[%clk 0:02:56.5]} 9. Bxf3 {[%clk 0:02:53.4]} 9... e6 {[%clk
0:02:57.1]} 10. Rc1 {[%clk 0:02:47.3]} 10... Bd6 {[%clk 0:02:56.6]} 11. Bxd6
{[%clk 0:02:46.2]} 11... Qxd6 {[%clk 0:02:57.5]} 12. a3 {[%clk 0:02:46.9]} 12...
O-O {[%clk 0:02:57.5]} 13. O-O {[%clk 0:02:46.8]} 13... Rac8 {[%clk 0:02:55.9]}
14. Na4 {[%clk 0:02:44.8]} 14... e5 {[%clk 0:02:48.8]} 15. Nc5 {[%clk
0:02:39.5]} 15... exd4 {[%clk 0:02:42]} 16. exd4 {[%clk 0:02:40.4]} 16... Qf4
{[%clk 0:02:40.5]} 17. Nb3 {[%clk 0:02:24.6]} 17... Rfe8 {[%clk 0:02:36.7]} 18.
g3 {[%clk 0:02:22.6]} 18... Qd6 {[%clk 0:02:31.1]} 19. Nc5 {[%clk 0:02:17.2]}
19... Re7 {[%clk 0:02:25.7]} 20. b4 {[%clk 0:02:12.5]} 20... g6 {[%clk 0:02:25]}
21. Qd3 {[%clk 0:02:03]} 21... Kg7 {[%clk 0:02:22.1]} 22. Rc2 {[%clk 0:01:50.9]}
22... Rce8 {[%clk 0:02:06.4]} 23. Nxb7 {[%clk 0:01:16]} 23... Rxb7 {[%clk
0:02:04.2]} 24. Qxa6 {[%clk 0:01:16.2]} 24... Ra7 {[%clk 0:01:41.6]} 25. Qxc6
{[%clk 0:01:14.7]} 25... Qxc6 {[%clk 0:01:42.2]} 26. Rxc6 {[%clk 0:01:15.6]}
26... Rxa3 {[%clk 0:01:42.7]} 27. Kg2 {[%clk 0:01:08.2]} 27... Rb3 {[%clk
0:01:41.7]} 28. Rb6 {[%clk 0:01:04.9]} 28... Rd8 {[%clk 0:01:32.4]} 29. Re1
{[%clk 0:00:57]} 29... Rd7 {[%clk 0:01:30.7]} 30. h4 {[%clk 0:00:50.6]} 30...
Rd3 {[%clk 0:01:29.7]} 31. Rd1 {[%clk 0:00:47.1]} 31... Rb3 {[%clk 0:01:30.2]}
32. b5 {[%clk 0:00:37.5]} 32... Ra7 {[%clk 0:01:26.9]} 33. Rd2 {[%clk
0:00:30.3]} 33... Raa3 {[%clk 0:01:25.3]} 34. Be2 {[%clk 0:00:22.5]} 34... Ne4
{[%clk 0:01:20.1]} 35. Rc2 {[%clk 0:00:22.6]} 35... Rb4 {[%clk 0:01:19]} 36. Ra6
{[%clk 0:00:16.3]} 36... Rab3 {[%clk 0:01:16.1]} 37. Ra7 {[%clk 0:00:12.3]}
37... Rb2 {[%clk 0:01:09.6]} 38. Bd3 {[%clk 0:00:04.1]} 38... Rxc2 {[%clk
0:01:07.7]} 39. Bxc2 {[%clk 0:00:05]} 39... Nc3 {[%clk 0:01:04.1]} 40. Bd3
{[%clk 0:00:03]} 40... Rxd4 {[%clk 0:01:02.6]} 41. Bf1 {[%clk 0:00:03.7]} 41...
Rb4 {[%clk 0:01:01.3]} 42. Rd7 {[%clk 0:00:03]} 42... d4 {[%clk 0:01:00.4]} 43.
Rb7 {[%clk 0:00:02.5]} 43... Rb2 {[%clk 0:00:58.8]} 44. Kf3 {[%clk 0:00:01.7]}
44... Nd1 {[%clk 0:00:55.4]} 45. Be2 {[%clk 0:00:01.8]} 45... Nxf2 {[%clk
0:00:55.7]} 46. Kxf2 {[%clk 0:00:01.7]} 46... d3 {[%clk 0:00:55.9]} 47. Re7
{[%clk 0:00:01.3]} 47... dxe2 {[%clk 0:00:56.1]} 48. Rxe2 {[%clk 0:00:02.2]}
48... Rxb5 {[%clk 0:00:56.1]} 49. Kg2 {[%clk 0:00:03.1]} 49... Kf6 {[%clk
0:00:55.5]} 50. Kh3 {[%clk 0:00:02.9]} 50... Re5 {[%clk 0:00:54.1]} 51. Rf2+
{[%clk 0:00:03.3]} 51... Ke6 {[%clk 0:00:54.2]} 52. Rb2 {[%clk 0:00:04.2]} 52...
h5 {[%clk 0:00:53.8]} 53. Rb6+ {[%clk 0:00:05.1]} 53... Kf5 {[%clk 0:00:52.8]}
54. Rb7 {[%clk 0:00:06]} 54... f6 {[%clk 0:00:52.1]} 55. Rb6 {[%clk 0:00:06.2]}
55... g5 {[%clk 0:00:50.9]} 56. hxg5 {[%clk 0:00:05.9]} 56... fxg5 {[%clk
0:00:51.8]} 57. g4+ {[%clk 0:00:05.3]} 57... hxg4+ {[%clk 0:00:51.3]} 58. Kg3
{[%clk 0:00:05.9]} 58... Re3+ {[%clk 0:00:51.6]} 59. Kg2 {[%clk 0:00:06.5]}
59... g3 {[%clk 0:00:51.3]} 60. Rb4 {[%clk 0:00:06.2]} 60... Re4 {[%clk
0:00:50.5]} 61. Rb5+ {[%clk 0:00:06.2]} 61... Kf4 {[%clk 0:00:50.3]} 62. Rb2
{[%clk 0:00:07.1]} 62... Kg4 {[%clk 0:00:50.1]} 63. Ra2 {[%clk 0:00:06.8]} 63...
Rf4 {[%clk 0:00:50.3]} 64. Kg1 {[%clk 0:00:06.7]} 64... Rc4 {[%clk 0:00:39.9]}
65. Ra1 {[%clk 0:00:06.8]} 65... Kh3 {[%clk 0:00:38.6]} 66. Kh1 {[%clk
0:00:05.4]} 66... Rc3 {[%clk 0:00:38.4]} 67. Kg1 {[%clk 0:00:04.9]} 67... g4
{[%clk 0:00:38.7]} 68. Rb1 {[%clk 0:00:03.6]} 68... g2 {[%clk 0:00:38.7]} 69.
Re1 {[%clk 0:00:02.4]} 69... Rf3 {[%clk 0:00:38.7]} 70. Rd1 {[%clk 0:00:01.6]}
70... Rf1+ {[%clk 0:00:38.5]} 0-1

[Event "Late-Titled-Tuesday-Blitz-April-30-2024"]
[Site "Chess.com"]
[Date "2024.04.30"]
[Round "5"]
[White "MITerryble"]
[Black "Binary010"]
[Result "1-0"]
[WhiteElo "3025"]
[BlackElo "2921"]
[TimeControl "180+1"]
[EndTime "14:58:05 PDT"]
[Termination "MITerryble won by resignation"]

1. d4 {[%clk 0:02:59.9]} 1... Nf6 {[%clk 0:03:00]} 2. Bg5 {[%clk 0:02:59.8]}
2... Ne4 {[%clk 0:02:57.1]} 3. Bf4 {[%clk 0:02:59.7]} 3... c5 {[%clk 0:02:57.5]}
4. f3 {[%clk 0:02:59.8]} 4... Qa5+ {[%clk 0:02:57.4]} 5. c3 {[%clk 0:03:00]}
5... Nf6 {[%clk 0:02:57.9]} 6. d5 {[%clk 0:03:00.4]} 6... e6 {[%clk 0:02:56.8]}
7. e4 {[%clk 0:03:00.2]} 7... exd5 {[%clk 0:02:56]} 8. e5 {[%clk 0:02:54.4]}
8... Nh5 {[%clk 0:02:38.9]} 9. Bc1 {[%clk 0:02:54.2]} 9... Qd8 {[%clk
0:02:22.3]} 10. Ne2 {[%clk 0:02:26.9]} 10... Nc6 {[%clk 0:01:49.6]} 11. Qxd5
{[%clk 0:02:24]} 11... d6 {[%clk 0:01:29]} 12. g4 {[%clk 0:01:56.7]} 12... Qh4+
{[%clk 0:01:17]} 13. Kd1 {[%clk 0:01:56.6]} 13... Be6 {[%clk 0:01:01]} 14. Qe4
{[%clk 0:01:56.6]} 14... dxe5 {[%clk 0:00:45.9]} 15. gxh5 {[%clk 0:01:56]} 15...
O-O-O+ {[%clk 0:00:36]} 16. Bd2 {[%clk 0:01:41]} 16... Qxh5 {[%clk 0:00:33.4]}
17. Ng3 {[%clk 0:01:40.7]} 17... Qg5 {[%clk 0:00:31.7]} 18. Kc1 {[%clk
0:01:29.7]} 18... Qf6 {[%clk 0:00:30.5]} 19. Bc4 {[%clk 0:01:06.9]} 19... g6
{[%clk 0:00:17.4]} 20. Na3 {[%clk 0:00:58.7]} 20... Kb8 {[%clk 0:00:16.4]} 21.
Kc2 {[%clk 0:00:57.5]} 21... h5 {[%clk 0:00:14.3]} 22. Bxe6 {[%clk 0:00:55.3]}
22... Qxe6 {[%clk 0:00:14.3]} 23. Rad1 {[%clk 0:00:51.5]} 23... h4 {[%clk
0:00:07.3]} 24. Ne2 {[%clk 0:00:51.2]} 24... Be7 {[%clk 0:00:07.7]} 25. Rhe1
{[%clk 0:00:39.3]} 25... Qxa2 {[%clk 0:00:07.2]} 26. Qc4 {[%clk 0:00:37.4]}
26... Qxc4 {[%clk 0:00:06.3]} 27. Nxc4 {[%clk 0:00:38.3]} 27... b5 {[%clk
0:00:06]} 28. Ne3 {[%clk 0:00:34.5]} 28... Bg5 {[%clk 0:00:04.5]} 29. Ng1 {[%clk
0:00:32.6]} 29... h3 {[%clk 0:00:03.7]} 30. Ng4 {[%clk 0:00:31.1]} 30... Bxd2
{[%clk 0:00:03.9]} 31. Rxd2 {[%clk 0:00:32]} 31... Rxd2+ {[%clk 0:00:03.9]} 32.
Kxd2 {[%clk 0:00:32.9]} 32... Rd8+ {[%clk 0:00:01.8]} 33. Kc2 {[%clk 0:00:33.3]}
33... Re8 {[%clk 0:00:01.5]} 34. Nxh3 {[%clk 0:00:33.4]} 34... f5 {[%clk
0:00:02.3]} 35. Ngf2 {[%clk 0:00:33.3]} 35... Kc7 {[%clk 0:00:02.8]} 36. Ng5
{[%clk 0:00:33]} 36... Rh8 {[%clk 0:00:02.6]} 37. h3 {[%clk 0:00:33.2]} 37...
Rh5 {[%clk 0:00:02.5]} 38. Nf7 {[%clk 0:00:32.8]} 38... f4 {[%clk 0:00:02.8]}
39. Rg1 {[%clk 0:00:31.7]} 39... Rf5 {[%clk 0:00:02.5]} 40. Ng5 {[%clk
0:00:31.7]} 40... Ne7 {[%clk 0:00:02.2]} 41. Nge4 {[%clk 0:00:31]} 41... Nd5
{[%clk 0:00:02.4]} 42. Rxg6 {[%clk 0:00:30.1]} 42... Ne3+ {[%clk 0:00:03.1]} 43.
Kd2 {[%clk 0:00:28.7]} 43... c4 {[%clk 0:00:02.8]} 44. Nd6 {[%clk 0:00:26.5]}
44... Rf8 {[%clk 0:00:02.5]} 45. Nxb5+ {[%clk 0:00:26.8]} 45... Kb7 {[%clk
0:00:03.1]} 46. Ke2 {[%clk 0:00:21.6]} 46... Rh8 {[%clk 0:00:02.9]} 47. Nd6+
{[%clk 0:00:21.5]} 47... Kc7 {[%clk 0:00:03.3]} 48. Nf7 {[%clk 0:00:21.9]} 48...
Rb8 {[%clk 0:00:02.7]} 49. Nd1 {[%clk 0:00:20.8]} 49... Nxd1 {[%clk 0:00:03]}
50. Kxd1 {[%clk 0:00:21.7]} 50... Rxb2 {[%clk 0:00:03.5]} 51. Nxe5 {[%clk
0:00:22.1]} 51... Rh2 {[%clk 0:00:02.1]} 52. Rh6 {[%clk 0:00:22.1]} 52... a5
{[%clk 0:00:01.9]} 53. Nxc4 {[%clk 0:00:22.5]} 53... a4 {[%clk 0:00:02.4]} 54.
Kc1 {[%clk 0:00:21.5]} 54... Rf2 {[%clk 0:00:02.3]} 55. h4 {[%clk 0:00:18]}
55... Rxf3 {[%clk 0:00:02.7]} 56. Rh7+ {[%clk 0:00:18.4]} 56... Kd8 {[%clk
0:00:01.9]} 57. Kb2 {[%clk 0:00:18.8]} 57... Rh3 {[%clk 0:00:02]} 58. h5 {[%clk
0:00:14.2]} 58... f3 {[%clk 0:00:01.9]} 59. Rf7 {[%clk 0:00:14.3]} 59... Rxh5
{[%clk 0:00:01.9]} 60. Rxf3 {[%clk 0:00:14.3]} 60... Rb5+ {[%clk 0:00:02.4]} 61.
Kc2 {[%clk 0:00:14.7]} 61... Rc5 {[%clk 0:00:02.8]} 62. Rf4 {[%clk 0:00:14.3]}
62... Kc7 {[%clk 0:00:02.8]} 63. Na3 {[%clk 0:00:14.6]} 63... Ra5 {[%clk
0:00:02.4]} 64. Rb4 {[%clk 0:00:14.5]} 64... Kc6 {[%clk 0:00:02.5]} 65. c4
{[%clk 0:00:15]} 65... Ra8 {[%clk 0:00:02.3]} 66. Kc3 {[%clk 0:00:15.1]} 66...
Kc5 {[%clk 0:00:02.5]} 67. Rb5+ {[%clk 0:00:15.5]} 67... Kc6 {[%clk 0:00:03.3]}
68. Kb4 {[%clk 0:00:16.4]} 68... Ra7 {[%clk 0:00:03.4]} 69. Nc2 {[%clk
0:00:15.3]} 1-0

[Event "Late-Titled-Tuesday-Blitz-April-30-2024"]
[Site "Chess.com"]
[Date "2024.04.30"]
[Round "5"]
[White "profedechess93"]
[Black "Sinquefield"]
[Result "0-1"]
[WhiteElo "2647"]
[BlackElo "2511"]
[TimeControl "180+1"]
[EndTime "14:58:06 PDT"]
[Termination "Sinquefield won by resignation"]

1. e4 {[%clk 0:03:00]} 1... d5 {[%clk 0:02:38.4]} 2. exd5 {[%clk 0:02:58.9]}
2... Qxd5 {[%clk 0:02:38.2]} 3. Nc3 {[%clk 0:02:59.3]} 3... Qe5+ {[%clk
0:02:38.4]} 4. Be2 {[%clk 0:02:59.3]} 4... Bg4 {[%clk 0:02:39]} 5. d4 {[%clk
0:02:59]} 5... Bxe2 {[%clk 0:02:38.2]} 6. Ngxe2 {[%clk 0:02:59.9]} 6... Qa5
{[%clk 0:02:38.3]} 7. b4 {[%clk 0:02:22.4]} 7... Qh5 {[%clk 0:02:15.4]} 8. Bf4
{[%clk 0:02:13.2]} 8... e6 {[%clk 0:02:13.6]} 9. O-O {[%clk 0:01:58.5]} 9... c6
{[%clk 0:02:10.7]} 10. Rb1 {[%clk 0:01:49.6]} 10... Nd7 {[%clk 0:01:48.4]} 11.
b5 {[%clk 0:01:43.9]} 11... c5 {[%clk 0:01:48.2]} 12. b6 {[%clk 0:01:27.7]}
12... a6 {[%clk 0:01:39.9]} 13. Ne4 {[%clk 0:01:17.1]} 13... Ngf6 {[%clk
0:01:32.7]} 14. Nd6+ {[%clk 0:01:07.4]} 14... Bxd6 {[%clk 0:01:29.5]} 15. Bxd6
{[%clk 0:01:08.3]} 15... c4 {[%clk 0:01:26.3]} 16. Re1 {[%clk 0:01:00.9]} 16...
Qd5 {[%clk 0:01:25]} 17. Ba3 {[%clk 0:00:53.9]} 17... O-O-O {[%clk 0:01:15.1]}
18. Nc3 {[%clk 0:00:38.9]} 18... Qc6 {[%clk 0:01:10.2]} 19. Qc1 {[%clk
0:00:35.6]} 19... Nd5 {[%clk 0:01:01.2]} 20. Ne4 {[%clk 0:00:34.8]} 20... N7xb6
{[%clk 0:00:57.1]} 21. Nc5 {[%clk 0:00:28.4]} 21... Nc3 {[%clk 0:00:51]} 22. Ra1
{[%clk 0:00:26.5]} 22... Nb5 {[%clk 0:00:46.8]} 23. Bb4 {[%clk 0:00:23]} 23...
Nxd4 {[%clk 0:00:38.5]} 24. c3 {[%clk 0:00:20]} 24... Nf5 {[%clk 0:00:35.9]} 25.
Rb1 {[%clk 0:00:18.6]} 25... Nd5 {[%clk 0:00:33.2]} 26. Qb2 {[%clk 0:00:16]}
26... Nh4 {[%clk 0:00:28.9]} 27. Ba5 {[%clk 0:00:12]} 27... b5 {[%clk
0:00:17.9]} 28. Bxd8 {[%clk 0:00:10.2]} 28... Nf4 {[%clk 0:00:14.3]} 29. Ne4
{[%clk 0:00:09.6]} 29... Rxd8 {[%clk 0:00:14]} 30. f3 {[%clk 0:00:07.2]} 30...
Nd3 {[%clk 0:00:13.5]} 31. Qa3 {[%clk 0:00:06.5]} 31... Nxe1 {[%clk 0:00:13.4]}
32. Rxe1 {[%clk 0:00:07.4]} 32... Nf5 {[%clk 0:00:12.4]} 33. Qb4 {[%clk
0:00:07.1]} 33... Nd6 {[%clk 0:00:12.4]} 34. a4 {[%clk 0:00:06.6]} 34... Nxe4
{[%clk 0:00:12.1]} 35. fxe4 {[%clk 0:00:07.5]} 35... Rd2 {[%clk 0:00:10.6]} 36.
axb5 {[%clk 0:00:05.8]} 36... Qb6+ {[%clk 0:00:09.6]} 37. Kh1 {[%clk 0:00:05.8]}
37... Qf2 {[%clk 0:00:08.7]} 38. Rg1 {[%clk 0:00:06.2]} 38... axb5 {[%clk
0:00:05.1]} 39. Qxb5 {[%clk 0:00:05.6]} 39... Qe2 {[%clk 0:00:05.5]} 40. Qc6+
{[%clk 0:00:05.6]} 40... Kd8 {[%clk 0:00:05.8]} 41. Qb6+ {[%clk 0:00:04.5]}
41... Ke7 {[%clk 0:00:06.3]} 42. Qc5+ {[%clk 0:00:04.7]} 42... Kf6 {[%clk
0:00:05.9]} 43. Qc7 {[%clk 0:00:03.3]} 43... h6 {[%clk 0:00:05]} 44. Qf4+ {[%clk
0:00:03.6]} 44... Kg6 {[%clk 0:00:05.6]} 45. h4 {[%clk 0:00:03.7]} 45... Kh7
{[%clk 0:00:05.9]} 46. e5 {[%clk 0:00:04]} 46... Qf2 {[%clk 0:00:05.8]} 47. Qxc4
{[%clk 0:00:03.5]} 47... Rc2 {[%clk 0:00:04.3]} 48. Qe4+ {[%clk 0:00:03.5]}
48... g6 {[%clk 0:00:04.9]} 49. h5 {[%clk 0:00:02.2]} 49... Rxc3 {[%clk
0:00:04.6]} 50. hxg6+ {[%clk 0:00:02.5]} 50... fxg6 {[%clk 0:00:05.5]} 51. Qg4
{[%clk 0:00:02.5]} 51... Qf5 {[%clk 0:00:05.5]} 52. Qxf5 {[%clk 0:00:02.6]}
52... gxf5 {[%clk 0:00:05.4]} 53. Re1 {[%clk 0:00:03.5]} 53... Kg6 {[%clk
0:00:05.4]} 54. Kg1 {[%clk 0:00:04.4]} 54... Rc4 {[%clk 0:00:05.7]} 55. Kf2
{[%clk 0:00:05.3]} 55... Re4 {[%clk 0:00:06.4]} 56. Rxe4 {[%clk 0:00:05.6]}
56... fxe4 {[%clk 0:00:07.3]} 57. Kg3 {[%clk 0:00:06.1]} 57... Kf5 {[%clk
0:00:07.5]} 58. Kh4 {[%clk 0:00:07]} 58... Kf4 {[%clk 0:00:06.2]} 59. Kh5 {[%clk
0:00:07.9]} 59... e3 {[%clk 0:00:06.5]} 60. Kxh6 {[%clk 0:00:08.6]} 60... e2
{[%clk 0:00:06.7]} 61. g4 {[%clk 0:00:09.5]} 61... Kxg4 {[%clk 0:00:07.1]} 0-1

[Event "Late-Titled-Tuesday-Blitz-April-30-2024"]
[Site "Chess.com"]
[Date "2024.04.30"]
[Round "5"]
[White "GlavkonVVS"]
[Black "DeArron_Fox"]
[Result "0-1"]
[WhiteElo "2686"]
[BlackElo "2517"]
[TimeControl "180+1"]
[EndTime "14:58:09 PDT"]
[Termination "DeArron_Fox won by checkmate"]

1. c4 {[%clk 0:03:00.9]} 1... e6 {[%clk 0:02:49.6]} 2. Nc3 {[%clk 0:03:01.2]}
2... d5 {[%clk 0:02:48.9]} 3. d4 {[%clk 0:03:01.7]} 3... Nf6 {[%clk 0:02:49]} 4.
Nf3 {[%clk 0:03:02]} 4... Be7 {[%clk 0:02:49.1]} 5. Bg5 {[%clk 0:03:02.3]} 5...
h6 {[%clk 0:02:48]} 6. Bxf6 {[%clk 0:03:02.2]} 6... Bxf6 {[%clk 0:02:48.9]} 7.
e3 {[%clk 0:03:02.8]} 7... O-O {[%clk 0:02:48.5]} 8. Qc2 {[%clk 0:03:00.8]} 8...
b6 {[%clk 0:02:39]} 9. cxd5 {[%clk 0:02:57.6]} 9... exd5 {[%clk 0:02:39.9]} 10.
Be2 {[%clk 0:02:56.4]} 10... Be6 {[%clk 0:02:30.5]} 11. O-O {[%clk 0:02:55.4]}
11... c5 {[%clk 0:02:31]} 12. dxc5 {[%clk 0:02:54]} 12... bxc5 {[%clk
0:02:31.9]} 13. Rfd1 {[%clk 0:02:54.3]} 13... Nc6 {[%clk 0:02:20.9]} 14. Nxd5
{[%clk 0:02:30.7]} 14... Bxd5 {[%clk 0:02:13.6]} 15. Qxc5 {[%clk 0:02:30.7]}
15... Ne7 {[%clk 0:01:24.4]} 16. e4 {[%clk 0:02:30.1]} 16... Rc8 {[%clk
0:01:12.3]} 17. Qa3 {[%clk 0:02:17.8]} 17... Rc2 {[%clk 0:01:05.5]} 18. Qd3
{[%clk 0:01:56.7]} 18... Rxb2 {[%clk 0:00:47.6]} 19. exd5 {[%clk 0:01:55.7]}
19... Nxd5 {[%clk 0:00:37.8]} 20. Bf1 {[%clk 0:01:35.7]} 20... Nc3 {[%clk
0:00:22.8]} 21. Qxd8 {[%clk 0:01:34.9]} 21... Bxd8 {[%clk 0:00:11.4]} 22. Rd3
{[%clk 0:01:30.4]} 22... Nxa2 {[%clk 0:00:06.4]} 23. Ra3 {[%clk 0:01:28.5]}
23... Nb4 {[%clk 0:00:06.5]} 24. Rxa7 {[%clk 0:01:28]} 24... Bb6 {[%clk
0:00:07.2]} 25. R7a4 {[%clk 0:01:26.2]} 25... Bxf2+ {[%clk 0:00:03.7]} 26. Kh1
{[%clk 0:01:25.7]} 26... g6 {[%clk 0:00:02.8]} 27. Bc4 {[%clk 0:01:19.8]} 27...
Be3 {[%clk 0:00:02.5]} 28. Ne5 {[%clk 0:01:11.7]} 28... Bd4 {[%clk 0:00:02.8]}
29. Nxg6 {[%clk 0:01:10]} 29... Re8 {[%clk 0:00:03]} 30. Rf1 {[%clk 0:01:06.9]}
30... Kg7 {[%clk 0:00:01.5]} 31. Bxf7 {[%clk 0:01:03.9]} 31... Ree2 {[%clk
0:00:02.2]} 32. Nf4 {[%clk 0:01:01.7]} 32... Rf2 {[%clk 0:00:02.2]} 33. Bc4
{[%clk 0:00:58.4]} 33... Rxf1+ {[%clk 0:00:01.8]} 34. Bxf1 {[%clk 0:00:58.5]}
34... Rb1 {[%clk 0:00:02.7]} 35. g3 {[%clk 0:00:51.9]} 35... Rxf1+ {[%clk
0:00:02.9]} 36. Kg2 {[%clk 0:00:52.6]} 36... Rf2+ {[%clk 0:00:03.8]} 37. Kh3
{[%clk 0:00:53]} 37... Nc6 {[%clk 0:00:02.7]} 38. Rc4 {[%clk 0:00:52.1]} 38...
Be3 {[%clk 0:00:02]} 39. Ne6+ {[%clk 0:00:47.7]} 39... Kg6 {[%clk 0:00:01.7]}
40. Rxc6 {[%clk 0:00:48.1]} 40... Kf5 {[%clk 0:00:02.2]} 41. Ng7+ {[%clk
0:00:47]} 41... Kg5 {[%clk 0:00:02.2]} 42. Re6 {[%clk 0:00:45.4]} 42... Bd4
{[%clk 0:00:01.9]} 43. Ne8 {[%clk 0:00:40.2]} 43... Kf5 {[%clk 0:00:02.4]} 44.
Rxh6 {[%clk 0:00:38.9]} 44... Be5 {[%clk 0:00:02.1]} 45. Rh5+ {[%clk 0:00:38.4]}
45... Ke6 {[%clk 0:00:02.2]} 46. Rh7 {[%clk 0:00:35.2]} 46... Rf8 {[%clk
0:00:02.4]} 47. Nc7+ {[%clk 0:00:34.8]} 47... Kd6 {[%clk 0:00:02.6]} 48. Nb5+
{[%clk 0:00:35]} 48... Kc5 {[%clk 0:00:03.1]} 49. Rh5 {[%clk 0:00:34.8]} 49...
Re8 {[%clk 0:00:02.3]} 50. Nc3 {[%clk 0:00:34.3]} 50... Kd4 {[%clk 0:00:01.7]}
51. Ne2+ {[%clk 0:00:34.3]} 51... Ke3 {[%clk 0:00:02.3]} 52. Ng1 {[%clk
0:00:33.8]} 52... Kf2 {[%clk 0:00:02.7]} 53. Rf5+ {[%clk 0:00:26.6]} 53... Kxg1
{[%clk 0:00:03.1]} 54. Kg4 {[%clk 0:00:23.8]} 54... Kxh2 {[%clk 0:00:02.6]} 55.
Kf3 {[%clk 0:00:22.9]} 55... Kg1 {[%clk 0:00:01.8]} 56. g4 {[%clk 0:00:23]}
56... Bc7 {[%clk 0:00:02.1]} 57. g5 {[%clk 0:00:23.3]} 57... Kh2 {[%clk
0:00:02.2]} 58. Kg4 {[%clk 0:00:21.7]} 58... Re1 {[%clk 0:00:01.4]} 59. g6
{[%clk 0:00:19.8]} 59... Rg1+ {[%clk 0:00:02.3]} 60. Kh5 {[%clk 0:00:20.2]}
60... Bb6 {[%clk 0:00:02.2]} 61. Rd5 {[%clk 0:00:17.1]} 61... Be3 {[%clk
0:00:02.1]} 62. Rf5 {[%clk 0:00:16.4]} 62... Bd4 {[%clk 0:00:02]} 63. Rd5 {[%clk
0:00:16.2]} 63... Bf6 {[%clk 0:00:02.2]} 64. Kh6 {[%clk 0:00:15.8]} 64... Kh3
{[%clk 0:00:01.5]} 65. Rh5+ {[%clk 0:00:15.5]} 65... Kg4 {[%clk 0:00:01.4]} 66.
Rh2 {[%clk 0:00:15.4]} 66... Kf5 {[%clk 0:00:01.6]} 67. Rf2+ {[%clk 0:00:15.3]}
67... Ke6 {[%clk 0:00:02.2]} 68. Kh7 {[%clk 0:00:15]} 68... Rh1+ {[%clk
0:00:01.7]} 69. Kg8 {[%clk 0:00:15.1]} 69... Rh8# {[%clk 0:00:02.2]} 0-1